Workbook

Sheet Sheet1
A1: 玉屏侗族自治县2024年事业单位公开招聘事业单位工作人员总成绩及进入体检人员名单
A2: 序号 | B2: 姓名 | C2: 性别 | D2: 招考单位代码及名称 | E2: 岗位代码及名称 | F2: 面试准考证 | G2: 面试成绩 | H2: 面试折合成绩 （×40%） | I2: 笔试成绩 | J2: 笔试折合成绩 （×60%） | K2: 考试总成绩 | L2: 总成绩排名 | M2: 是否进入体检 | N2: 备注
A3: 1 | B3: 胡晗晔 | C3: 女 | D3: 0001玉屏侗族自治县全国文明城市创建中心 | E3: 01专业技术岗位 | F3: 2024ZP00124 | G3: 77.00 | H3: =G3*0.4 -> 30.80 | I3: 207 | J3: =(I3/3)*0.6 -> 41.40 | K3: =H3+J3 -> 72.20 | L3: 1 | M3: 是
A4: 2 | B4: 徐廷军 | C4: 男 | D4: 0001玉屏侗族自治县全国文明城市创建中心 | E4: 01专业技术岗位 | F4: 2024ZP00127 | G4: 73.80 | H4: =G4*0.4 -> 29.52 | I4: 211.5 | J4: 42.30 | K4: 71.82 | L4: 2
A5: 3 | B5: 滕召维 | C5: 男 | D5: 0001玉屏侗族自治县全国文明城市创建中心 | E5: 01专业技术岗位 | F5: 2024ZP00128 | G5: 缺考 | H5: 0.00 | I5: 216.5 | J5: 43.30 | K5: 43.30 | L5: 3
A6: 4 | B6: 覃晓娟 | C6: 女 | D6: 0001玉屏侗族自治县全国文明城市创建中心 | E6: 02工作人员 | F6: 2024ZP00122 | G6: 73.80 | H6: =G6*0.4 -> 29.52 | I6: 203 | J6: 40.60 | K6: 70.12 | L6: 1 | M6: 是
A7: 5 | B7: 胡雨 | C7: 女 | D7: 0001玉屏侗族自治县全国文明城市创建中心 | E7: 02工作人员 | F7: 2024ZP00120 | G7: 74.60 | H7: 29.84 | I7: 200 | J7: 40.00 | K7: 69.84 | L7: 2
A8: 6 | B8: 罗婵 | C8: 女 | D8: 0001玉屏侗族自治县全国文明城市创建中心 | E8: 02工作人员 | F8: 2024ZP00114 | G8: 70.60 | H8: 28.24 | I8: 193.5 | J8: 38.70 | K8: 66.94 | L8: 3
A9: 7 | B9: 李嘉然 | C9: 男 | D9: 0001玉屏侗族自治县全国文明城市创建中心 | E9: 03工作人员 | F9: 2024ZP00108 | G9: 73.80 | H9: 29.52 | I9: 187 | J9: 37.40 | K9: 66.92 | L9: 1 | M9: 是
A10: 8 | B10: 杨钊 | C10: 男 | D10: 0001玉屏侗族自治县全国文明城市创建中心 | E10: 03工作人员 | F10: 2024ZP00105 | G10: 72.40 | H10: 28.96 | I10: 183.5 | J10: 36.70 | K10: 65.66 | L10: 2
A11: 9 | B11: 杨银华 | C11: 男 | D11: 0001玉屏侗族自治县全国文明城市创建中心 | E11: 03工作人员 | F11: 2024ZP00101 | G11: 74.70 | H11: 29.88 | I11: 172.5 | J11: 34.50 | K11: 64.38 | L11: 3
A12: 10 | B12: 喻芳婷 | C12: 女 | D12: 0002玉屏侗族自治县商会服务中心 | E12: 04工作人员 | F12: 2024ZP00125 | G12: 76.40 | H12: 30.56 | I12: 209.5 | J12: 41.90 | K12: 72.46 | L12: 1 | M12: 是
A13: 11 | B13: 赵梦菲 | C13: 女 | D13: 0002玉屏侗族自治县商会服务中心 | E13: 04工作人员 | F13: 2024ZP00111 | G13: 78.80 | H13: 31.52 | I13: 191.5 | J13: 38.30 | K13: 69.82 | L13: 2
A14: 12 | B14: 向雪梅 | C14: 女 | D14: 0002玉屏侗族自治县商会服务中心 | E14: 04工作人员 | F14: 2024ZP00116 | G14: 74.60 | H14: 29.84 | I14: 196.5 | J14: 39.30 | K14: 69.14 | L14: 3
A15: 13 | B15: 代先平 | C15: 女 | D15: 0003玉屏侗族自治县人民法院网络管理中心 | E15: 05工作人员 | F15: 2024ZP00123 | G15: 79.80 | H15: 31.92 | I15: 205.5 | J15: 41.10 | K15: 73.02 | L15: 1 | M15: 是
A16: 14 | B16: 任怡佳 | C16: 女 | D16: 0003玉屏侗族自治县人民法院网络管理中心 | E16: 05工作人员 | F16: 2024ZP00119 | G16: 75.10 | H16: 30.04 | I16: 198 | J16: 39.60 | K16: 69.64 | L16: 2
A17: 15 | B17: 杨小雲 | C17: 女 | D17: 0003玉屏侗族自治县人民法院网络管理中心 | E17: 05工作人员 | F17: 2024ZP00109 | G17: 80.00 | H17: 32.00 | I17: 187 | J17: 37.40 | K17: 69.40 | L17: 3
A18: 16 | B18: 张淇奕 | C18: 女 | D18: 0004玉屏侗族自治县财政局下属事业单位 | E18: 06工作人员 | F18: 2024ZP00112 | G18: 74.00 | H18: 29.60 | I18: 192.5 | J18: 38.50 | K18: 68.10 | L18: 1 | M18: 是
A19: 17 | B19: 张蝶 | C19: 女 | D19: 0004玉屏侗族自治县财政局下属事业单位 | E19: 06工作人员 | F19: 2024ZP00107 | G19: 72.40 | H19: 28.96 | I19: 186.5 | J19: 37.30 | K19: 66.26 | L19: 2
A20: 18 | B20: 向潇 | C20: 男 | D20: 0004玉屏侗族自治县财政局下属事业单位 | E20: 06工作人员 | F20: 2024ZP00106 | G20: 缺考 | H20: 0.00 | I20: 185 | J20: 37.00 | K20: 37.00 | L20: 3
A21: 19 | B21: 熊懿 | C21: 男 | D21: 0004玉屏侗族自治县财政局下属事业单位 | E21: 07工作人员 | F21: 2024ZP00117 | G21: 78.80 | H21: =G21*0.4 -> 31.52 | I21: 197.5 | J21: 39.50 | K21: 71.02 | L21: 1 | M21: 是
A22: 20 | B22: 钟颖 | C22: 女 | D22: 0004玉屏侗族自治县财政局下属事业单位 | E22: 07工作人员 | F22: 2024ZP00113 | G22: 77.20 | H22: =G22*0.4 -> 30.88 | I22: 193 | J22: 38.60 | K22: 69.48 | L22: 2
A23: 21 | B23: 黄子航 | C23: 女 | D23: 0004玉屏侗族自治县财政局下属事业单位 | E23: 07工作人员 | F23: 2024ZP00102 | G23: 75.80 | H23: =G23*0.4 -> 30.32 | I23: 181.5 | J23: 36.30 | K23: 66.62 | L23: 3
A24: 22 | B24: 王永兴 | C24: 男 | D24: 0005玉屏侗族自治县公安局警务大数据管理中心 | E24: 08专业技术岗位 | F24: 2024ZP00115 | G24: 79.80 | H24: =G24*0.4 -> 31.92 | I24: 195 | J24: 39.00 | K24: 70.92 | L24: 1 | M24: 是
A25: 23 | B25: 杨胜利 | C25: 男 | D25: 0005玉屏侗族自治县公安局警务大数据管理中心 | E25: 08专业技术岗位 | F25: 2024ZP00110 | G25: 74.00 | H25: =G25*0.4 -> 29.60 | I25: 190.5 | J25: 38.10 | K25: 67.70 | L25: 2
A26: 24 | B26: 郑广 | C26: 男 | D26: 0005玉屏侗族自治县公安局警务大数据管理中心 | E26: 08专业技术岗位 | F26: 2024ZP00126 | G26: 缺考 | H26: 0.00 | I26: 209.5 | J26: 41.90 | K26: 41.90 | L26: 3
A27: 25 | B27: 刘泓靥 | C27: 女 | D27: 0006玉屏侗族自治县毒品预防教育中心 | E27: 09工作人员 | F27: 2024ZP00121 | G27: 75.80 | H27: =G27*0.4 -> 30.32 | I27: 200.5 | J27: 40.10 | K27: 70.42 | L27: 1 | M27: 是
A28: 26 | B28: 曾叶静 | C28: 女 | D28: 0006玉屏侗族自治县毒品预防教育中心 | E28: 09工作人员 | F28: 2024ZP00118 | G28: 76.20 | H28: 30.48 | I28: 197.5 | J28: 39.50 | K28: 69.98 | L28: 2
A29: 27 | B29: 杨庆 | C29: 女 | D29: 0006玉屏侗族自治县毒品预防教育中心 | E29: 09工作人员 | F29: 2024ZP00103 | G29: 74.60 | H29: 29.84 | I29: 181.5 | J29: 36.30 | K29: 66.14 | L29: 3
A30: 28 | B30: 刘海琴 | C30: 女 | D30: 0006玉屏侗族自治县毒品预防教育中心 | E30: 09工作人员 | F30: 2024ZP00104 | G30: 73.30 | H30: 29.32 | I30: 181.5 | J30: 36.30 | K30: 65.62 | L30: 4
A31: 29 | B31: 龙文 | C31: 男 | D31: 0006玉屏侗族自治县毒品预防教育中心 | E31: 10工作人员 | F31: 2024ZP00223 | G31: 82.00 | H31: 32.80 | I31: 173.5 | J31: 34.70 | K31: 67.50 | L31: 1 | M31: 是
A32: 30 | B32: 李小隆 | C32: 男 | D32: 0006玉屏侗族自治县毒品预防教育中心 | E32: 10工作人员 | F32: 2024ZP00208 | G32: 76.80 | H32: 30.72 | I32: 179 | J32: 35.80 | K32: 66.52 | L32: 2
A33: 31 | B33: 张林森 | C33: 男 | D33: 0006玉屏侗族自治县毒品预防教育中心 | E33: 10工作人员 | F33: 2024ZP00221 | G33: 71.60 | H33: 28.64 | I33: 180 | J33: 36.00 | K33: 64.64 | L33: 3
A34: 32 | B34: 朱小兵 | C34: 男 | D34: 0006玉屏侗族自治县毒品预防教育中心 | E34: 11工作人员 | F34: 2024ZP00224 | G34: 80.10 | H34: 32.04 | I34: 181 | J34: 36.20 | K34: 68.24 | L34: 1 | M34: 是
A35: 33 | B35: 莫浚济 | C35: 男 | D35: 0006玉屏侗族自治县毒品预防教育中心 | E35: 11工作人员 | F35: 2024ZP00205 | G35: 75.90 | H35: 30.36 | I35: 168 | J35: 33.60 | K35: 63.96 | L35: 2
A36: 34 | B36: 刘晓磊 | C36: 男 | D36: 0006玉屏侗族自治县毒品预防教育中心 | E36: 11工作人员 | F36: 2024ZP00210 | G36: 71.20 | H36: 28.48 | I36: 167.5 | J36: 33.50 | K36: 61.98 | L36: 3
A37: 35 | B37: 汪连强 | C37: 男 | D37: 0007玉屏侗族自治县城市管理综合行政执法大队 | E37: 12专业技术岗位 | F37: 2024ZP00215 | G37: 74.80 | H37: 29.92 | I37: 199.5 | J37: 39.90 | K37: 69.82 | L37: 1 | M37: 是
A38: 36 | B38: 黎瑶毅 | C38: 女 | D38: 0007玉屏侗族自治县城市管理综合行政执法大队 | E38: 12专业技术岗位 | F38: 2024ZP00218 | G38: 76.40 | H38: 30.56 | I38: 192.5 | J38: 38.50 | K38: 69.06 | L38: 2
A39: 37 | B39: 吴创新 | C39: 男 | D39: 0007玉屏侗族自治县城市管理综合行政执法大队 | E39: 12专业技术岗位 | F39: 2024ZP00217 | G39: 78.30 | H39: 31.32 | I39: 186 | J39: 37.20 | K39: 68.52 | L39: 3
A40: 38 | B40: 邓旭凤 | C40: 女 | D40: 0007玉屏侗族自治县城市管理综合行政执法大队 | E40: 13专业技术岗位 | F40: 2024ZP00222 | G40: 79.80 | H40: 31.92 | I40: 188.5 | J40: 37.70 | K40: 69.62 | L40: 1 | M40: 是
A41: 39 | B41: 帅伟 | C41: 男 | D41: 0007玉屏侗族自治县城市管理综合行政执法大队 | E41: 13专业技术岗位 | F41: 2024ZP00216 | G41: 74.90 | H41: 29.96 | I41: 193 | J41: 38.60 | K41: 68.56 | L41: 2
A42: 40 | B42: 徐佳佳 | C42: 男 | D42: 0007玉屏侗族自治县城市管理综合行政执法大队 | E42: 13专业技术岗位 | F42: 2024ZP00219 | G42: 76.40 | H42: 30.56 | I42: 188 | J42: 37.60 | K42: 68.16 | L42: 3
A43: 41 | B43: 何苗 | C43: 女 | D43: 0008玉屏侗族自治县畜牧渔业发展中心 | E43: 14专业技术岗位 | F43: 2024ZP00212 | G43: 82.40 | H43: 32.96 | I43: 151.5 | J43: 30.30 | K43: 63.26 | L43: 1 | M43: 是
A44: 42 | B44: 吴宪 | C44: 女 | D44: 0008玉屏侗族自治县畜牧渔业发展中心 | E44: 14专业技术岗位 | F44: 2024ZP00230 | G44: 78.60 | H44: 31.44 | I44: 154.5 | J44: 30.90 | K44: 62.34 | L44: 2
A45: 43 | B45: 杨昱暄 | C45: 女 | D45: 0008玉屏侗族自治县畜牧渔业发展中心 | E45: 14专业技术岗位 | F45: 2024ZP00226 | G45: 74.80 | H45: 29.92 | I45: 141.5 | J45: 28.30 | K45: 58.22 | L45: 3
A46: 44 | B46: 李远琴 | C46: 女 | D46: 0009玉屏侗族自治县农业农村局下属事业单位 | E46: 15专业技术岗位 | F46: 2024ZP00227 | G46: 83.00 | H46: 33.20 | I46: 197.5 | J46: 39.50 | K46: 72.70 | L46: 1 | M46: 是
A47: 45 | B47: 姚青 | C47: 女 | D47: 0009玉屏侗族自治县农业农村局下属事业单位 | E47: 15专业技术岗位 | F47: 2024ZP00211 | G47: 84.10 | H47: 33.64 | I47: 187.5 | J47: 37.50 | K47: 71.14 | L47: 2
A48: 46 | B48: 杨清馨 | C48: 女 | D48: 0009玉屏侗族自治县农业农村局下属事业单位 | E48: 15专业技术岗位 | F48: 2024ZP00213 | G48: 缺考 | H48: 0.00 | I48: 182.5 | J48: 36.50 | K48: 36.50 | L48: 3
A49: 47 | B49: 王文涛 | C49: 男 | D49: 0009玉屏侗族自治县农业农村局下属事业单位 | E49: 16专业技术岗位 | F49: 2024ZP00202 | G49: 81.00 | H49: =G49*0.4 -> 32.40 | I49: 208.5 | J49: 41.70 | K49: 74.10 | L49: 1 | M49: 是
A50: 48 | B50: 姚佳 | C50: 男 | D50: 0009玉屏侗族自治县农业农村局下属事业单位 | E50: 16专业技术岗位 | F50: 2024ZP00209 | G50: 82.20 | H50: 32.88 | I50: 205 | J50: 41.00 | K50: 73.88 | L50: 2
A51: 49 | B51: 杨通焕 | C51: 男 | D51: 0009玉屏侗族自治县农业农村局下属事业单位 | E51: 16专业技术岗位 | F51: 2024ZP00229 | G51: 79.60 | H51: 31.84 | I51: 193 | J51: 38.60 | K51: 70.44 | L51: 3
A52: 50 | B52: 杨凌艺 | C52: 女 | D52: 0010玉屏侗族自治县市场监督管理局信息中心 | E52: 17工作人员 | F52: 2024ZP00206 | G52: 83.00 | H52: 33.20 | I52: 216 | J52: 43.20 | K52: 76.40 | L52: 1 | M52: 是
A53: 51 | B53: 石忠南 | C53: 男 | D53: 0010玉屏侗族自治县市场监督管理局信息中心 | E53: 17工作人员 | F53: 2024ZP00201 | G53: 73.50 | H53: 29.40 | I53: 212 | J53: 42.40 | K53: 71.80 | L53: 2
A54: 52 | B54: 蒋恒星 | C54: 男 | D54: 0010玉屏侗族自治县市场监督管理局信息中心 | E54: 17工作人员 | F54: 2024ZP00204 | G54: 71.80 | H54: 28.72 | I54: 202 | J54: 40.40 | K54: 69.12 | L54: 3
A55: 53 | B55: 王琳 | C55: 女 | D55: 0011玉屏侗族自治县应急管理综合行政执法大队 | E55: 18工作人员 | F55: 2024ZP00203 | G55: 83.00 | H55: 33.20 | I55: 181.5 | J55: 36.30 | K55: 69.50 | L55: 1 | M55: 是
A56: 54 | B56: 万宇 | C56: 男 | D56: 0011玉屏侗族自治县应急管理综合行政执法大队 | E56: 18工作人员 | F56: 2024ZP00207 | G56: 缺考 | H56: 0.00 | I56: 190 | J56: 38.00 | K56: 38.00 | L56: 2
A57: 55 | B57: 杨艳婷 | C57: 女 | D57: 0011玉屏侗族自治县应急管理综合行政执法大队 | E57: 18工作人员 | F57: 2024ZP00228 | G57: 缺考 | H57: 0.00 | I57: 181 | J57: 36.20 | K57: 36.20 | L57: 3
A58: 56 | B58: 朱芳芳 | C58: 女 | D58: 0012玉屏侗族自治县水利工程管理中心 | E58: 19专业技术岗位 | F58: 2024ZP00220 | G58: 82.50 | H58: =G58*0.4 -> 33.00 | I58: 218.5 | J58: 43.70 | K58: 76.70 | L58: 1 | M58: 是
A59: 57 | B59: 王薇 | C59: 女 | D59: 0012玉屏侗族自治县水利工程管理中心 | E59: 19专业技术岗位 | F59: 2024ZP00214 | G59: 81.80 | H59: 32.72 | I59: 197 | J59: 39.40 | K59: 72.12 | L59: 2
A60: 58 | B60: 张澳颖 | C60: 女 | D60: 0012玉屏侗族自治县水利工程管理中心 | E60: 19专业技术岗位 | F60: 2024ZP00225 | G60: 75.00 | H60: 30.00 | I60: 195.5 | J60: 39.10 | K60: 69.10 | L60: 3
A61: 59 | B61: 陈思运 | C61: 男 | D61: 0012玉屏侗族自治县水利工程管理中心 | E61: 20专业技术岗位 | F61: 2024ZP00303 | G61: 77.90 | H61: 31.16 | I61: 193 | J61: 38.60 | K61: 69.76 | L61: 1 | M61: 是
A62: 60 | B62: 陈占鹏 | C62: 男 | D62: 0012玉屏侗族自治县水利工程管理中心 | E62: 20专业技术岗位 | F62: 2024ZP00323 | G62: 80.10 | H62: 32.04 | I62: 187.5 | J62: 37.50 | K62: 69.54 | L62: 2
A63: 61 | B63: 万皮波 | C63: 男 | D63: 0012玉屏侗族自治县水利工程管理中心 | E63: 20专业技术岗位 | F63: 2024ZP00318 | G63: 78.90 | H63: 31.56 | I63: 185 | J63: 37.00 | K63: 68.56 | L63: 3
A64: 62 | B64: 张艳平 | C64: 女 | D64: 0012玉屏侗族自治县水利工程管理中心 | E64: 21工作人员 | F64: 2024ZP00305 | G64: 76.60 | H64: 30.64 | I64: 185.5 | J64: 37.10 | K64: 67.74 | L64: 1 | M64: 是
A65: 63 | B65: 陈佳欣 | C65: 女 | D65: 0012玉屏侗族自治县水利工程管理中心 | E65: 21工作人员 | F65: 2024ZP00327 | G65: 74.40 | H65: 29.76 | I65: 186 | J65: 37.20 | K65: 66.96 | L65: 2
A66: 64 | B66: 郭文 | C66: 女 | D66: 0012玉屏侗族自治县水利工程管理中心 | E66: 21工作人员 | F66: 2024ZP00306 | G66: 缺考 | H66: 0.00 | I66: 199.5 | J66: 39.90 | K66: 39.90 | L66: 3
A67: 65 | B67: 吴征遥 | C67: 女 | D67: 0013玉屏侗族自治县重点水源工程建设服务中心 | E67: 22专业技术岗位 | F67: 2024ZP00302 | G67: 77.80 | H67: =G67*0.4 -> 31.12 | I67: 203 | J67: =(I67/3)*0.6 -> 40.60 | K67: =H67+J67 -> 71.72 | L67: 1 | M67: 是
A68: 66 | B68: 徐研 | C68: 女 | D68: 0013玉屏侗族自治县重点水源工程建设服务中心 | E68: 22专业技术岗位 | F68: 2024ZP00319 | G68: 79.10 | H68: 31.64 | I68: 198.5 | J68: 39.70 | K68: 71.34 | L68: 2
A69: 67 | B69: 代紫薇 | C69: 女 | D69: 0013玉屏侗族自治县重点水源工程建设服务中心 | E69: 22专业技术岗位 | F69: 2024ZP00320 | G69: 75.30 | H69: 30.12 | I69: 193 | J69: 38.60 | K69: 68.72 | L69: 3
A70: 68 | B70: 石兆彬 | C70: 男 | D70: 0013玉屏侗族自治县重点水源工程建设服务中心 | E70: 23专业技术岗位 | F70: 2024ZP00324 | G70: 75.60 | H70: 30.24 | I70: 217.5 | J70: 43.50 | K70: 73.74 | L70: 1 | M70: 是
A71: 69 | B71: 杜东东 | C71: 男 | D71: 0013玉屏侗族自治县重点水源工程建设服务中心 | E71: 23专业技术岗位 | F71: 2024ZP00321 | G71: 74.40 | H71: 29.76 | I71: 199 | J71: 39.80 | K71: 69.56 | L71: 2
A72: 70 | B72: 刘浪 | C72: 男 | D72: 0013玉屏侗族自治县重点水源工程建设服务中心 | E72: 23专业技术岗位 | F72: 2024ZP00325 | G72: 61.80 | H72: 24.72 | I72: 194.5 | J72: 38.90 | K72: 63.62 | L72: 3
A73: 71 | B73: 陈红 | C73: 女 | D73: 0014玉屏侗族自治县水旱灾害防御站 | E73: 24专业技术岗位 | F73: 2024ZP00311 | G73: 69.60 | H73: 27.84 | I73: 196.5 | J73: 39.30 | K73: 67.14 | L73: 1 | M73: 是
A74: 72 | B74: 张婷 | C74: 女 | D74: 0014玉屏侗族自治县水旱灾害防御站 | E74: 24专业技术岗位 | F74: 2024ZP00312 | G74: 77.00 | H74: 30.80 | I74: 181.5 | J74: 36.30 | K74: 67.10 | L74: 2
A75: 73 | B75: 万新尹 | C75: 女 | D75: 0014玉屏侗族自治县水旱灾害防御站 | E75: 24专业技术岗位 | F75: 2024ZP00314 | G75: 77.30 | H75: 30.92 | I75: 179.5 | J75: 35.90 | K75: 66.82 | L75: 3
A76: 74 | B76: 姚丽君 | C76: 女 | D76: 0015玉屏侗族自治县文化旅游产业发展招商服务中心 | E76: 25工作人员 | F76: 2024ZP00309 | G76: 75.40 | H76: 30.16 | I76: 176.5 | J76: 35.30 | K76: 65.46 | L76: 1 | M76: 是
A77: 75 | B77: 殷丹丹 | C77: 女 | D77: 0015玉屏侗族自治县文化旅游产业发展招商服务中心 | E77: 25工作人员 | F77: 2024ZP00310 | G77: 73.20 | H77: 29.28 | I77: 177.5 | J77: 35.50 | K77: 64.78 | L77: 2
A78: 76 | B78: 高朗 | C78: 女 | D78: 0015玉屏侗族自治县文化旅游产业发展招商服务中心 | E78: 25工作人员 | F78: 2024ZP00315 | G78: 74.80 | H78: 29.92 | I78: 171 | J78: 34.20 | K78: 64.12 | L78: 3
A79: 77 | B79: 许凝 | C79: 女 | D79: 0016玉屏侗族自治县自然资源局下属事业单位 | E79: 26专业技术岗位 | F79: 2024ZP00317 | G79: 78.40 | H79: 31.36 | I79: 194 | J79: 38.80 | K79: 70.16 | L79: 1 | M79: 是
A80: 78 | B80: 唐宇琳 | C80: 女 | D80: 0016玉屏侗族自治县自然资源局下属事业单位 | E80: 26专业技术岗位 | F80: 2024ZP00322 | G80: 78.20 | H80: 31.28 | I80: 192.5 | J80: 38.50 | K80: 69.78 | L80: 2
A81: 79 | B81: 魏紫伊 | C81: 女 | D81: 0016玉屏侗族自治县自然资源局下属事业单位 | E81: 26专业技术岗位 | F81: 2024ZP00304 | G81: 缺考 | H81: 0.00 | I81: 189.5 | J81: 37.90 | K81: 37.90 | L81: 3
A82: 80 | B82: 吉子梁 | C82: 男 | D82: 0016玉屏侗族自治县自然资源局下属事业单位 | E82: 27专业技术岗位 | F82: 2024ZP00307 | G82: 82.70 | H82: =G82*0.4 -> 33.08 | I82: 184.5 | J82: 36.90 | K82: 69.98 | L82: 1 | M82: 是
A83: 81 | B83: 杨晓龙 | C83: 男 | D83: 0016玉屏侗族自治县自然资源局下属事业单位 | E83: 27专业技术岗位 | F83: 2024ZP00301 | G83: 71.40 | H83: 28.56 | I83: 202.5 | J83: 40.50 | K83: 69.06 | L83: 2
A84: 82 | B84: 李文杰 | C84: 男 | D84: 0016玉屏侗族自治县自然资源局下属事业单位 | E84: 27专业技术岗位 | F84: 2024ZP00326 | G84: 78.40 | H84: 31.36 | I84: 181 | J84: 36.20 | K84: 67.56 | L84: 3
A85: 83 | B85: 陈晓萱 | C85: 女 | D85: 0017玉屏侗族自治县能源综合行政执法大队 | E85: 28专业技术岗位 | F85: 2024ZP00308 | G85: 75.20 | H85: 30.08 | I85: 196 | J85: 39.20 | K85: 69.28 | L85: 1 | M85: 是
A86: 84 | B86: 杨鹏 | C86: 男 | D86: 0017玉屏侗族自治县能源综合行政执法大队 | E86: 28专业技术岗位 | F86: 2024ZP00313 | G86: 76.00 | H86: 30.40 | I86: 181.5 | J86: 36.30 | K86: 66.70 | L86: 2
A87: 85 | B87: 韩烨 | C87: 男 | D87: 0017玉屏侗族自治县能源综合行政执法大队 | E87: 28专业技术岗位 | F87: 2024ZP00316 | G87: 75.60 | H87: 30.24 | I87: 175.5 | J87: 35.10 | K87: 65.34 | L87: 3
A88: 87 | B88: 李婉婷 | C88: 女 | D88: 0018贵州鸿丰律师事务所 | E88: 29工作人员 | F88: 2024ZP00404 | G88: 81.60 | H88: 32.64 | I88: 206.5 | J88: 41.30 | K88: 73.94 | L88: 1 | M88: 是
A89: 86 | B89: 付彪 | C89: 男 | D89: 0018贵州鸿丰律师事务所 | E89: 29工作人员 | F89: 2024ZP00419 | G89: 79.40 | H89: 31.76 | I89: 203.5 | J89: 40.70 | K89: 72.46 | L89: 2
A90: 88 | B90: 卢佳丽 | C90: 女 | D90: 0018贵州鸿丰律师事务所 | E90: 29工作人员 | F90: 2024ZP00416 | G90: 缺考 | H90: 0.00 | I90: 197.5 | J90: 39.50 | K90: 39.50 | L90: 3
A91: 89 | B91: 旷姣 | C91: 女 | D91: 0019玉屏侗族自治县普查中心 | E91: 30工作人员 | F91: 2024ZP00426 | G91: 82.40 | H91: =G91*0.4 -> 32.96 | I91: 214.5 | J91: 42.90 | K91: 75.86 | L91: 1 | M91: 是
A92: 90 | B92: 石精英 | C92: 女 | D92: 0019玉屏侗族自治县普查中心 | E92: 30工作人员 | F92: 2024ZP00421 | G92: 78.40 | H92: 31.36 | I92: 197 | J92: 39.40 | K92: 70.76 | L92: 2
A93: 91 | B93: 袁艺玲 | C93: 女 | D93: 0019玉屏侗族自治县普查中心 | E93: 30工作人员 | F93: 2024ZP00415 | G93: 68.00 | H93: 27.20 | I93: 198.5 | J93: 39.70 | K93: 66.90 | L93: 3
A94: 92 | B94: 洪爱玲 | C94: 女 | D94: 0020玉屏侗族自治县敬老院 | E94: 31工作人员 | F94: 2024ZP00413 | G94: 82.80 | H94: 33.12 | I94: 198 | J94: 39.60 | K94: 72.72 | L94: 1 | M94: 是
A95: 93 | B95: 冯平 | C95: 女 | D95: 0020玉屏侗族自治县敬老院 | E95: 31工作人员 | F95: 2024ZP00417 | G95: 79.00 | H95: 31.60 | I95: 197 | J95: 39.40 | K95: 71.00 | L95: 2
A96: 94 | B96: 姚水红 | C96: 女 | D96: 0020玉屏侗族自治县敬老院 | E96: 31工作人员 | F96: 2024ZP00407 | G96: 78.20 | H96: 31.28 | I96: 184.5 | J96: 36.90 | K96: 68.18 | L96: 3
A97: 95 | B97: 张江琳 | C97: 男 | D97: 0020玉屏侗族自治县敬老院 | E97: 32工作人员 | F97: 2024ZP00411 | G97: 84.20 | H97: 33.68 | I97: 197 | J97: 39.40 | K97: 73.08 | L97: 1 | M97: 是
A98: 96 | B98: 陆坚 | C98: 男 | D98: 0020玉屏侗族自治县敬老院 | E98: 32工作人员 | F98: 2024ZP00408 | G98: 81.40 | H98: 32.56 | I98: 200.5 | J98: 40.10 | K98: 72.66 | L98: 2
A99: 97 | B99: 杨开鑫 | C99: 男 | D99: 0020玉屏侗族自治县敬老院 | E99: 32工作人员 | F99: 2024ZP00412 | G99: 74.00 | H99: 29.60 | I99: 187 | J99: 37.40 | K99: 67.00 | L99: 3
A100: 98 | B100: 李思齐 | C100: 男 | D100: 0021玉屏侗族自治县茅坡国有林场 | E100: 33专业技术岗位 | F100: 2024ZP00409 | G100: 78.20 | H100: 31.28 | I100: 171 | J100: 34.20 | K100: 65.48 | L100: 1 | M100: 是
A101: 99 | B101: 周雨茜 | C101: 女 | D101: 0021玉屏侗族自治县茅坡国有林场 | E101: 33专业技术岗位 | F101: 2024ZP00410 | G101: 77.80 | H101: 31.12 | I101: 168.5 | J101: 33.70 | K101: 64.82 | L101: 2
A102: 100 | B102: 夏忠 | C102: 男 | D102: 0021玉屏侗族自治县茅坡国有林场 | E102: 34专业技术岗位 | F102: 2024ZP00414 | G102: 78.80 | H102: 31.52 | I102: 172.5 | J102: 34.50 | K102: 66.02 | L102: 1 | M102: 是
A103: 101 | B103: 简光勇 | C103: 男 | D103: 0021玉屏侗族自治县茅坡国有林场 | E103: 34专业技术岗位 | F103: 2024ZP00418 | G103: 74.80 | H103: 29.92 | I103: 172.5 | J103: 34.50 | K103: 64.42 | L103: 2
A104: 102 | B104: 佘坤 | C104: 男 | D104: 0021玉屏侗族自治县茅坡国有林场 | E104: 34专业技术岗位 | F104: 2024ZP00401 | G104: 66.20 | H104: 26.48 | I104: 158.5 | J104: 31.70 | K104: 58.18 | L104: 3
A105: 103 | B105: 潘珊 | C105: 女 | D105: 0022玉屏侗族自治县种苗站 | E105: 35工作人员 | F105: 2024ZP00423 | G105: 79.40 | H105: 31.76 | I105: 189 | J105: 37.80 | K105: 69.56 | L105: 1 | M105: 是
A106: 104 | B106: 张金鑫 | C106: 男 | D106: 0022玉屏侗族自治县种苗站 | E106: 35工作人员 | F106: 2024ZP00427 | G106: 75.80 | H106: 30.32 | I106: 167 | J106: 33.40 | K106: 63.72 | L106: 2
A107: 105 | B107: 刘樾 | C107: 男 | D107: 0022玉屏侗族自治县种苗站 | E107: 35工作人员 | F107: 2024ZP00406 | G107: 缺考 | H107: 0.00 | I107: 200.5 | J107: 40.10 | K107: 40.10 | L107: 3
A108: 106 | B108: 彭玮 | C108: 女 | D108: 0023玉屏侗族自治县营林项目推广站 | E108: 36工作人员 | F108: 2024ZP00424 | G108: 78.80 | H108: =G108*0.4 -> 31.52 | I108: 208 | J108: 41.60 | K108: 73.12 | L108: 1 | M108: 是
A109: 107 | B109: 李枝玘 | C109: 女 | D109: 0023玉屏侗族自治县营林项目推广站 | E109: 36工作人员 | F109: 2024ZP00425 | G109: 82.60 | H109: =G109*0.4 -> 33.04 | I109: 184.5 | J109: 36.90 | K109: 69.94 | L109: 2
A110: 108 | B110: 蒋沙 | C110: 女 | D110: 0023玉屏侗族自治县营林项目推广站 | E110: 36工作人员 | F110: 2024ZP00405 | G110: 缺考 | H110: 0.00 | I110: 179.5 | J110: 35.90 | K110: 35.90 | L110: 3
A111: 109 | B111: 覃旭 | C111: 女 | D111: 0024玉屏侗族自治县消防救援勤务中心 | E111: 37工作人员 | F111: 2024ZP00403 | G111: 81.20 | H111: =G111*0.4 -> 32.48 | I111: 185.5 | J111: 37.10 | K111: 69.58 | L111: 1 | M111: 是
A112: 110 | B112: 熊娣 | C112: 女 | D112: 0024玉屏侗族自治县消防救援勤务中心 | E112: 37工作人员 | F112: 2024ZP00420 | G112: 79.00 | H112: 31.60 | I112: 180.5 | J112: 36.10 | K112: 67.70 | L112: 2
A113: 111 | B113: 龙潭 | C113: 男 | D113: 0024玉屏侗族自治县消防救援勤务中心 | E113: 37工作人员 | F113: 2024ZP00422 | G113: 78.40 | H113: 31.36 | I113: 178.5 | J113: 35.70 | K113: 67.06 | L113: 3
A114: 112 | B114: 吴月琴 | C114: 女 | D114: 0024玉屏侗族自治县消防救援勤务中心 | E114: 37工作人员 | F114: 2024ZP00402 | G114: 78.40 | H114: 31.36 | I114: 178.5 | J114: 35.70 | K114: 67.06 | L114: 3
A115: 113 | B115: 吴梦洁 | C115: 女 | D115: 0025玉屏侗族自治县融媒体中心 | E115: 39记者 | F115: 2024ZP00519 | G115: 74.84 | H115: 29.94 | I115: 207 | J115: 41.40 | K115: 71.34 | L115: 1 | M115: 是
A116: 114 | B116: 华雪 | C116: 女 | D116: 0025玉屏侗族自治县融媒体中心 | E116: 39记者 | F116: 2024ZP00525 | G116: 74.80 | H116: 29.92 | I116: 201.5 | J116: 40.30 | K116: 70.22 | L116: 2
A117: 115 | B117: 安洪江 | C117: 男 | D117: 0025玉屏侗族自治县融媒体中心 | E117: 39记者 | F117: 2024ZP00523 | G117: 缺考 | H117: 0.00 | I117: 203.5 | J117: 40.70 | K117: 40.70 | L117: 3
A118: 116 | B118: 杨斯喻 | C118: 女 | D118: 0026玉屏侗族自治县残疾人辅助器具供应服务站 | E118: 40工作人员 | F118: 2024ZP00530 | G118: 84.64 | H118: =G118*0.4 -> 33.86 | I118: 203 | J118: 40.60 | K118: 74.46 | L118: 1 | M118: 是
A119: 117 | B119: 陈慧 | C119: 女 | D119: 0026玉屏侗族自治县残疾人辅助器具供应服务站 | E119: 40工作人员 | F119: 2024ZP00513 | G119: 80.90 | H119: 32.36 | I119: 207 | J119: 41.40 | K119: 73.76 | L119: 2
A120: 118 | B120: 刘慧 | C120: 女 | D120: 0026玉屏侗族自治县残疾人辅助器具供应服务站 | E120: 40工作人员 | F120: 2024ZP00511 | G120: 82.40 | H120: 32.96 | I120: 200.5 | J120: 40.10 | K120: 73.06 | L120: 3
A121: 119 | B121: 彭露 | C121: 女 | D121: 0027玉屏侗族自治县平溪街道办事处下属事业单位 | E121: 41管理岗位 | F121: 2024ZP00528 | G121: 82.64 | H121: 33.06 | I121: 209.5 | J121: 41.90 | K121: 74.96 | L121: 1 | M121: 是
A122: 120 | B122: 罗艳妮 | C122: 女 | D122: 0027玉屏侗族自治县平溪街道办事处下属事业单位 | E122: 41管理岗位 | F122: 2024ZP00503 | G122: 77.62 | H122: 31.05 | I122: 192 | J122: 38.40 | K122: 69.45 | L122: 2
A123: 121 | B123: 姚瑶 | C123: 女 | D123: 0027玉屏侗族自治县平溪街道办事处下属事业单位 | E123: 41管理岗位 | F123: 2024ZP00508 | G123: 78.62 | H123: 31.45 | I123: 183.5 | J123: 36.70 | K123: 68.15 | L123: 3
A124: 122 | B124: 刘铉 | C124: 男 | D124: 0027玉屏侗族自治县平溪街道办事处下属事业单位 | E124: 42工作人员 | F124: 2024ZP00517 | G124: 75.62 | H124: 30.25 | I124: 196 | J124: 39.20 | K124: 69.45 | L124: 1 | M124: 是
A125: 123 | B125: 魏政才 | C125: 男 | D125: 0027玉屏侗族自治县平溪街道办事处下属事业单位 | E125: 42工作人员 | F125: 2024ZP00509 | G125: 75.62 | H125: 30.25 | I125: 193.5 | J125: 38.70 | K125: 68.95 | L125: 2
A126: 124 | B126: 梁浩 | C126: 男 | D126: 0027玉屏侗族自治县平溪街道办事处下属事业单位 | E126: 42工作人员 | F126: 2024ZP00514 | G126: 70.60 | H126: 28.24 | I126: 193 | J126: 38.60 | K126: 66.84 | L126: 3
A127: 125 | B127: 敬芹芹 | C127: 女 | D127: 0028玉屏侗族自治县平溪街道综合行政执法办公室 | E127: 43管理岗位 | F127: 2024ZP00502 | G127: 73.26 | H127: 29.30 | I127: 196 | J127: 39.20 | K127: 68.50 | L127: 1 | M127: 是
A128: 126 | B128: 周颖 | C128: 女 | D128: 0028玉屏侗族自治县平溪街道综合行政执法办公室 | E128: 43管理岗位 | F128: 2024ZP00516 | G128: 73.50 | H128: 29.40 | I128: 187.5 | J128: 37.50 | K128: 66.90 | L128: 2
A129: 127 | B129: 滕松丽 | C129: 女 | D129: 0028玉屏侗族自治县平溪街道综合行政执法办公室 | E129: 43管理岗位 | F129: 2024ZP00526 | G129: 70.30 | H129: 28.12 | I129: 192.5 | J129: 38.50 | K129: 66.62 | L129: 3
A130: 128 | B130: 吴青蔚 | C130: 女 | D130: 0029玉屏侗族自治县皂角坪街道党务政务综合服务中心 | E130: 44工作人员 | F130: 2024ZP00512 | G130: 81.40 | H130: 32.56 | I130: 202 | J130: 40.40 | K130: 72.96 | L130: 1 | M130: 是
A131: 129 | B131: 夏先怡 | C131: 女 | D131: 0029玉屏侗族自治县皂角坪街道党务政务综合服务中心 | E131: 44工作人员 | F131: 2024ZP00520 | G131: 77.82 | H131: 31.13 | I131: 206 | J131: =(I131/3)*0.6 -> 41.20 | K131: =H131+J131 -> 72.33 | L131: 2
A132: 130 | B132: 胡淇然 | C132: 女 | D132: 0029玉屏侗族自治县皂角坪街道党务政务综合服务中心 | E132: 44工作人员 | F132: 2024ZP00505 | G132: 缺考 | H132: 0.00 | I132: 228 | J132: 45.60 | K132: 45.60 | L132: 3
A133: 131 | B133: 胡尧 | C133: 男 | D133: 0029玉屏侗族自治县皂角坪街道党务政务综合服务中心 | E133: 45管理岗位 | F133: 2024ZP00506 | G133: 80.40 | H133: =G133*0.4 -> 32.16 | I133: 212.5 | J133: 42.50 | K133: 74.66 | L133: 1 | M133: 是
A134: 132 | B134: 谭艺 | C134: 男 | D134: 0029玉屏侗族自治县皂角坪街道党务政务综合服务中心 | E134: 45管理岗位 | F134: 2024ZP00507 | G134: 76.84 | H134: 30.74 | I134: 204 | J134: 40.80 | K134: 71.54 | L134: 2
A135: 133 | B135: 姚茂根 | C135: 男 | D135: 0029玉屏侗族自治县皂角坪街道党务政务综合服务中心 | E135: 45管理岗位 | F135: 2024ZP00518 | G135: 66.20 | H135: 26.48 | I135: 197.5 | J135: 39.50 | K135: 65.98 | L135: 3
A136: 134 | B136: 孙银平 | C136: 女 | D136: 0030玉屏侗族自治县田坪镇综合行政执法办公室 | E136: 46管理岗位 | F136: 2024ZP00510 | G136: 79.28 | H136: 31.71 | I136: 178.5 | J136: 35.70 | K136: 67.41 | L136: 1 | M136: 是
A137: 135 | B137: 田栎嶷 | C137: 男 | D137: 0030玉屏侗族自治县田坪镇综合行政执法办公室 | E137: 46管理岗位 | F137: 2024ZP00515 | G137: 82.70 | H137: 33.08 | I137: 168 | J137: 33.60 | K137: 66.68 | L137: 2
A138: 136 | B138: 田晓婵 | C138: 女 | D138: 0030玉屏侗族自治县田坪镇综合行政执法办公室 | E138: 46管理岗位 | F138: 2024ZP00522 | G138: 72.56 | H138: 29.02 | I138: 170 | J138: 34.00 | K138: 63.02 | L138: 3
A139: 137 | B139: 杨予灵 | C139: 女 | D139: 0030玉屏侗族自治县田坪镇综合行政执法办公室 | E139: 47管理岗位 | F139: 2024ZP00521 | G139: 79.44 | H139: 31.78 | I139: 217 | J139: 43.40 | K139: 75.18 | L139: 1 | M139: 是
A140: 138 | B140: 杨弦 | C140: 女 | D140: 0030玉屏侗族自治县田坪镇综合行政执法办公室 | E140: 47管理岗位 | F140: 2024ZP00524 | G140: 76.06 | H140: 30.42 | I140: 208 | J140: 41.60 | K140: 72.02 | L140: 2
A141: 139 | B141: 龙垚 | C141: 男 | D141: 0030玉屏侗族自治县田坪镇综合行政执法办公室 | E141: 47管理岗位 | F141: 2024ZP00529 | G141: 缺考 | H141: 0.00 | I141: 203.5 | J141: 40.70 | K141: 40.70 | L141: 3
A142: 140 | B142: 吴慧霞 | C142: 女 | D142: 0030玉屏侗族自治县田坪镇综合行政执法办公室 | E142: 48管理岗位 | F142: 2024ZP00527 | G142: 74.74 | H142: =G142*0.4 -> 29.90 | I142: 195 | J142: 39.00 | K142: 68.90 | L142: 1 | M142: 是
A143: 141 | B143: 朱璐璐 | C143: 女 | D143: 0030玉屏侗族自治县田坪镇综合行政执法办公室 | E143: 48管理岗位 | F143: 2024ZP00501 | G143: 77.30 | H143: 30.92 | I143: 171.5 | J143: 34.30 | K143: 65.22 | L143: 2
A144: 142 | B144: 黄忠情 | C144: 女 | D144: 0030玉屏侗族自治县田坪镇综合行政执法办公室 | E144: 48管理岗位 | F144: 2024ZP00504 | G144: 66.80 | H144: 26.72 | I144: 158 | J144: 31.60 | K144: 58.32 | L144: 3
A145: 143 | B145: 姚晨 | C145: 男 | D145: 0030玉屏侗族自治县田坪镇综合行政执法办公室 | E145: 49管理岗位 | F145: 2024ZP00615 | G145: 78.40 | H145: 31.36 | I145: 196.5 | J145: 39.30 | K145: 70.66 | L145: 1 | M145: 是
A146: 144 | B146: 刘元水 | C146: 男 | D146: 0030玉屏侗族自治县田坪镇综合行政执法办公室 | E146: 49管理岗位 | F146: 2024ZP00613 | G146: 71.40 | H146: 28.56 | I146: 167.5 | J146: 33.50 | K146: 62.06 | L146: 2
A147: 145 | B147: 陈鑫 | C147: 男 | D147: 0030玉屏侗族自治县田坪镇综合行政执法办公室 | E147: 49管理岗位 | F147: 2024ZP00608 | G147: 71.20 | H147: 28.48 | I147: 162 | J147: 32.40 | K147: 60.88 | L147: 3
A148: 146 | B148: 王川 | C148: 男 | D148: 0031玉屏侗族自治县田坪镇退役军人服务站 | E148: 50工作人员 | F148: 2024ZP00623 | G148: 77.20 | H148: 30.88 | I148: 183 | J148: 36.60 | K148: 67.48 | L148: 1 | M148: 是
A149: 147 | B149: 罗贤良 | C149: 男 | D149: 0031玉屏侗族自治县田坪镇退役军人服务站 | E149: 50工作人员 | F149: 2024ZP00602 | G149: 76.80 | H149: 30.72 | I149: 176.5 | J149: 35.30 | K149: 66.02 | L149: 2
A150: 148 | B150: 冉志敏 | C150: 女 | D150: 0031玉屏侗族自治县田坪镇退役军人服务站 | E150: 50工作人员 | F150: 2024ZP00622 | G150: 71.00 | H150: 28.40 | I150: 174 | J150: 34.80 | K150: 63.20 | L150: 3
A151: 149 | B151: 何国富 | C151: 男 | D151: 0032玉屏侗族自治县朱家场镇农业服务中心 | E151: 51管理岗位 | F151: 2024ZP00626 | G151: 82.80 | H151: 33.12 | I151: 177.5 | J151: 35.50 | K151: 68.62 | L151: 1 | M151: 是
A152: 150 | B152: 莫航雪 | C152: 女 | D152: 0032玉屏侗族自治县朱家场镇农业服务中心 | E152: 51管理岗位 | F152: 2024ZP00628 | G152: 75.40 | H152: 30.16 | I152: 172 | J152: 34.40 | K152: 64.56 | L152: 2
A153: 151 | B153: 杨凡 | C153: 女 | D153: 0032玉屏侗族自治县朱家场镇农业服务中心 | E153: 51管理岗位 | F153: 2024ZP00603 | G153: 缺考 | H153: 0.00 | I153: 188 | J153: 37.60 | K153: 37.60 | L153: 3
A154: 152 | B154: 刘沅东 | C154: 男 | D154: 0033玉屏侗族自治县朱家场镇科教文卫服务中心 | E154: 52工作人员 | F154: 2024ZP00604 | G154: 78.00 | H154: =G154*0.4 -> 31.20 | I154: 149.5 | J154: 29.90 | K154: 61.10 | L154: 1 | M154: 是
A155: 153 | B155: 何小艳 | C155: 女 | D155: 0034玉屏侗族自治县朱家场镇计划生育协会 | E155: 53管理岗位 | F155: 2024ZP00621 | G155: 81.60 | H155: 32.64 | I155: 192.5 | J155: 38.50 | K155: 71.14 | L155: 1 | M155: 是
A156: 154 | B156: 龙妮 | C156: 女 | D156: 0034玉屏侗族自治县朱家场镇计划生育协会 | E156: 53管理岗位 | F156: 2024ZP00612 | G156: 75.60 | H156: 30.24 | I156: 171.5 | J156: 34.30 | K156: 64.54 | L156: 2
A157: 155 | B157: 周蕾 | C157: 女 | D157: 0034玉屏侗族自治县朱家场镇计划生育协会 | E157: 53管理岗位 | F157: 2024ZP00606 | G157: 76.20 | H157: 30.48 | I157: 168.5 | J157: 33.70 | K157: 64.18 | L157: 3
A158: 156 | B158: 朱杰强 | C158: 男 | D158: 0034玉屏侗族自治县朱家场镇计划生育协会 | E158: 54管理岗位 | F158: 2024ZP00620 | G158: 72.40 | H158: 28.96 | I158: 183.5 | J158: 36.70 | K158: 65.66 | L158: 1 | M158: 是 | N158: 根据招聘简章规定：“同一岗位报考人员考试总成绩排名出现末位并列的，笔试成绩(折算前)高的报考人员进入体检。
A159: 157 | B159: 胡果 | C159: 男 | D159: 0034玉屏侗族自治县朱家场镇计划生育协会 | E159: 54管理岗位 | F159: 2024ZP00611 | G159: 78.40 | H159: 31.36 | I159: 171.5 | J159: 34.30 | K159: 65.66 | L159: 1
A160: 158 | B160: 罗盼 | C160: 男 | D160: 0034玉屏侗族自治县朱家场镇计划生育协会 | E160: 54管理岗位 | F160: 2024ZP00601 | G160: 60.00 | H160: 24.00 | I160: 172 | J160: 34.40 | K160: 58.40 | L160: 2
A161: 159 | B161: 崔杨 | C161: 女 | D161: 0035玉屏侗族自治县新店镇交通管理所 | E161: 55管理岗位 | F161: 2024ZP00625 | G161: 79.40 | H161: 31.76 | I161: 198 | J161: 39.60 | K161: 71.36 | L161: 1 | M161: 是
A162: 160 | B162: 郭曦 | C162: 女 | D162: 0035玉屏侗族自治县新店镇交通管理所 | E162: 55管理岗位 | F162: 2024ZP00617 | G162: 78.80 | H162: 31.52 | I162: 186.5 | J162: 37.30 | K162: 68.82 | L162: 2
A163: 161 | B163: 杨令 | C163: 男 | D163: 0035玉屏侗族自治县新店镇交通管理所 | E163: 55管理岗位 | F163: 2024ZP00627 | G163: 75.20 | H163: 30.08 | I163: 185 | J163: 37.00 | K163: 67.08 | L163: 3
A164: 162 | B164: 姚蝶 | C164: 女 | D164: 0036玉屏侗族自治县新店镇退役军人服务站 | E164: 56管理岗位 | F164: 2024ZP00607 | G164: 78.80 | H164: 31.52 | I164: 205.5 | J164: 41.10 | K164: 72.62 | L164: 1 | M164: 是
A165: 163 | B165: 姚美玲 | C165: 女 | D165: 0036玉屏侗族自治县新店镇退役军人服务站 | E165: 56管理岗位 | F165: 2024ZP00614 | G165: 79.80 | H165: 31.92 | I165: 198.5 | J165: 39.70 | K165: 71.62 | L165: 2
A166: 164 | B166: 向洪宜 | C166: 女 | D166: 0036玉屏侗族自治县新店镇退役军人服务站 | E166: 56管理岗位 | F166: 2024ZP00616 | G166: 75.20 | H166: 30.08 | I166: 190.5 | J166: 38.10 | K166: 68.18 | L166: 3
A167: 165 | B167: 孙浩 | C167: 男 | D167: 0036玉屏侗族自治县新店镇退役军人服务站 | E167: 57管理岗位 | F167: 2024ZP00609 | G167: 77.80 | H167: 31.12 | I167: 177 | J167: 35.40 | K167: 66.52 | L167: 1 | M167: 是
A168: 166 | B168: 杨波 | C168: 男 | D168: 0036玉屏侗族自治县新店镇退役军人服务站 | E168: 57管理岗位 | F168: 2024ZP00610 | G168: 79.40 | H168: 31.76 | I168: 173.5 | J168: 34.70 | K168: 66.46 | L168: 2
A169: 167 | B169: 姚亮 | C169: 男 | D169: 0036玉屏侗族自治县新店镇退役军人服务站 | E169: 57管理岗位 | F169: 2024ZP00605 | G169: 76.80 | H169: 30.72 | I169: 175.5 | J169: 35.10 | K169: 65.82 | L169: 3
A170: 168 | B170: 杨迪 | C170: 女 | D170: 0037玉屏民族中学 | E170: 58地理教师 | F170: 2024ZP00810 | G170: 85.00 | H170: 34.00 | I170: 195.5 | J170: 39.10 | K170: 73.10 | L170: 1 | M170: 是
A171: 169 | B171: 席雨莎 | C171: 女 | D171: 0037玉屏民族中学 | E171: 58地理教师 | F171: 2024ZP00807 | G171: 86.00 | H171: 34.40 | I171: 189.5 | J171: 37.90 | K171: 72.30 | L171: 2
A172: 170 | B172: 杨雪萍 | C172: 女 | D172: 0037玉屏民族中学 | E172: 58地理教师 | F172: 2024ZP00803 | G172: 84.40 | H172: 33.76 | I172: 183 | J172: 36.60 | K172: 70.36 | L172: 3
A173: 171 | B173: 杨槐 | C173: 男 | D173: 0037玉屏民族中学 | E173: 59综合实践教师 | F173: 2024ZP00806 | G173: 84.60 | H173: 33.84 | I173: 181.5 | J173: 36.30 | K173: 70.14 | L173: 1 | M173: 是
A174: 172 | B174: 余贤 | C174: 男 | D174: 0037玉屏民族中学 | E174: 59综合实践教师 | F174: 2024ZP00808 | G174: 81.80 | H174: 32.72 | I174: 179 | J174: 35.80 | K174: 68.52 | L174: 2
A175: 173 | B175: 郭莉 | C175: 女 | D175: 0037玉屏民族中学 | E175: 59综合实践教师 | F175: 2024ZP00811 | G175: 85.94 | H175: 34.38 | I175: 159 | J175: 31.80 | K175: 66.18 | L175: 3
A176: 174 | B176: 罗浩 | C176: 男 | D176: 0038玉屏侗族自治县第六中学 | E176: 60心理学教师 | F176: 2024ZP00802 | G176: 87.20 | H176: 34.88 | I176: 185.5 | J176: 37.10 | K176: 71.98 | L176: 1 | M176: 是
A177: 175 | B177: 曾文慧 | C177: 女 | D177: 0038玉屏侗族自治县第六中学 | E177: 60心理学教师 | F177: 2024ZP00809 | G177: 86.20 | H177: 34.48 | I177: 173.5 | J177: 34.70 | K177: 69.18 | L177: 2
A178: 176 | B178: 张小袁 | C178: 女 | D178: 0038玉屏侗族自治县第六中学 | E178: 60心理学教师 | F178: 2024ZP00801 | G178: 83.00 | H178: 33.20 | I178: 168.5 | J178: 33.70 | K178: 66.90 | L178: 3
A179: 177 | B179: 吴继权 | C179: 男 | D179: 0038玉屏侗族自治县第六中学 | E179: 61校医 | F179: 2024ZP00716 | G179: 75.00 | H179: 30.00 | I179: 181.7 | J179: 36.34 | K179: 66.34 | L179: 1 | M179: 是
A180: 178 | B180: 方雅娜 | C180: 女 | D180: 0038玉屏侗族自治县第六中学 | E180: 61校医 | F180: 2024ZP00703 | G180: 60.20 | H180: 24.08 | I180: 151.9 | J180: 30.38 | K180: 54.46 | L180: 2
A181: 179 | B181: 田旭艳 | C181: 女 | D181: 0039玉屏侗族自治县中等职业学校 | E181: 62计算机教师 | F181: 2024ZP00804 | G181: 86.80 | H181: 34.72 | I181: 184 | J181: 36.80 | K181: 71.52 | L181: 1 | M181: 是
A182: 180 | B182: 赵旭刚 | C182: 男 | D182: 0039玉屏侗族自治县中等职业学校 | E182: 62计算机教师 | F182: 2024ZP00805 | G182: 84.00 | H182: 33.60 | I182: 161 | J182: 32.20 | K182: 65.80 | L182: 2
A183: 181 | B183: 张红梅 | C183: 女 | D183: 0039玉屏侗族自治县中等职业学校 | E183: 62计算机教师 | F183: 2024ZP00812 | G183: 80.90 | H183: 32.36 | I183: 139.5 | J183: 27.90 | K183: 60.26 | L183: 3
A184: 182 | B184: 姚欣竹 | C184: 女 | D184: 0041玉屏侗族自治县疾病预防控制中心 | E184: 64工作人员 | F184: 2024ZP00618 | G184: 80.00 | H184: 32.00 | I184: 173.5 | J184: 34.70 | K184: 66.70 | L184: 1 | M184: 是
A185: 183 | B185: 刘芳 | C185: 女 | D185: 0041玉屏侗族自治县疾病预防控制中心 | E185: 64工作人员 | F185: 2024ZP00619 | G185: 79.20 | H185: 31.68 | I185: 170 | J185: 34.00 | K185: 65.68 | L185: 2
A186: 184 | B186: 刘志浪 | C186: 男 | D186: 0041玉屏侗族自治县疾病预防控制中心 | E186: 64工作人员 | F186: 2024ZP00624 | G186: 74.40 | H186: 29.76 | I186: 168 | J186: 33.60 | K186: 63.36 | L186: 3
A187: 185 | B187: 刘洲 | C187: 男 | D187: 0042玉屏侗族自治县平溪街道社区卫生服务中心 | E187: 67中医医生 | F187: 2024ZP00707 | G187: 76.00 | H187: 30.40 | I187: 154.2 | J187: 30.84 | K187: 61.24 | L187: 1 | M187: 是
A188: 186 | B188: 江月红 | C188: 女 | D188: 0042玉屏侗族自治县平溪街道社区卫生服务中心 | E188: 67中医医生 | F188: 2024ZP00715 | G188: 70.60 | H188: 28.24 | I188: 151.3 | J188: 30.26 | K188: 58.50 | L188: 2
A189: 187 | B189: 何永芳 | C189: 女 | D189: 0042玉屏侗族自治县平溪街道社区卫生服务中心 | E189: 67中医医生 | F189: 2024ZP00722 | G189: 63.60 | H189: 25.44 | I189: 127.3 | J189: 25.46 | K189: 50.90 | L189: 3
A190: 188 | B190: 肖三燕 | C190: 女 | D190: 0043玉屏侗族自治县大龙街道社区卫生服务中心 | E190: 68营养师 | F190: 2024ZP00723 | G190: 82.40 | H190: 32.96 | I190: 167.8 | J190: 33.56 | K190: 66.52 | L190: 1 | M190: 是
A191: 189 | B191: 陆琴琴 | C191: 女 | D191: 0043玉屏侗族自治县大龙街道社区卫生服务中心 | E191: 68营养师 | F191: 2024ZP00726 | G191: 79.80 | H191: 31.92 | I191: 160.2 | J191: 32.04 | K191: 63.96 | L191: 2
A192: 190 | B192: 王雨涵 | C192: 女 | D192: 0043玉屏侗族自治县大龙街道社区卫生服务中心 | E192: 68营养师 | F192: 2024ZP00727 | G192: 71.80 | H192: 28.72 | I192: 155.1 | J192: 31.02 | K192: 59.74 | L192: 3
A193: 191 | B193: 许晓丽 | C193: 女 | D193: 0043玉屏侗族自治县大龙街道社区卫生服务中心 | E193: 69中医医生 | F193: 2024ZP00720 | G193: 73.80 | H193: 29.52 | I193: 157.7 | J193: 31.54 | K193: 61.06 | L193: 1 | M193: 是
A194: 192 | B194: 孙娅玲 | C194: 女 | D194: 0043玉屏侗族自治县大龙街道社区卫生服务中心 | E194: 69中医医生 | F194: 2024ZP00721 | G194: 67.40 | H194: 26.96 | I194: 144.2 | J194: 28.84 | K194: 55.80 | L194: 2
A195: 193 | B195: 黄龙 | C195: 男 | D195: 0043玉屏侗族自治县大龙街道社区卫生服务中心 | E195: 69中医医生 | F195: 2024ZP00724 | G195: 69.40 | H195: 27.76 | I195: 138.3 | J195: =(I195/3)*0.6 -> 27.66 | K195: =H195+J195 -> 55.42 | L195: 3
A196: 194 | B196: 田丽 | C196: 女 | D196: 0044玉屏侗族自治县田坪镇中心卫生院 | E196: 70药剂师 | F196: 2024ZP00717 | G196: 77.00 | H196: 30.80 | I196: 176.9 | J196: 35.38 | K196: 66.18 | L196: 1 | M196: 是
A197: 195 | B197: 赵文梦 | C197: 女 | D197: 0044玉屏侗族自治县田坪镇中心卫生院 | E197: 70药剂师 | F197: 2024ZP00710 | G197: 71.20 | H197: 28.48 | I197: 124 | J197: 24.80 | K197: 53.28 | L197: 2
A198: 196 | B198: 洪宙 | C198: 男 | D198: 0044玉屏侗族自治县田坪镇中心卫生院 | E198: 70药剂师 | F198: 2024ZP00705 | G198: 72.00 | H198: 28.80 | I198: 115.6 | J198: 23.12 | K198: 51.92 | L198: 3
A199: 197 | B199: 王小娟 | C199: 女 | D199: 0044玉屏侗族自治县田坪镇中心卫生院 | E199: 72中医医生 | F199: 2024ZP00702 | G199: 73.80 | H199: 29.52 | I199: 161.2 | J199: 32.24 | K199: 61.76 | L199: 1 | M199: 是
A200: 198 | B200: 王雪艳 | C200: 女 | D200: 0044玉屏侗族自治县田坪镇中心卫生院 | E200: 72中医医生 | F200: 2024ZP00719 | G200: 72.00 | H200: 28.80 | I200: 152.3 | J200: 30.46 | K200: 59.26 | L200: 2
... 13 more rows
